[Event "CAT-chT 2020"]
[Site "Catalonia"]
[Date "2020.02.15"]
[Round "5.9"]
[White "Chalmeta Ugas, Jordi"]
[Black "Lever, Erwan"]
[Result "1-0"]
[ECO "D80"]
[WhiteElo "2173"]
[BlackElo "2146"]
[Annotator "NA"]
[PlyCount "65"]
[EventDate "2020.01.18"]
[EventType "team-tourn"]
[EventCountry "ESP"]
[SourceTitle "playchess.com"]
[Source "ChessBase"]
[SourceQuality "1"]
[TimeControl "5400+30"]

1. d4 {[%emt 0:00:00]} Nf6 {[%emt 0:00:00]} 2. c4 {[%emt 0:00:00]} g6 {[%emt 0:00:00]} 3. Nc3 {[%emt 0:00:00]} d5 {[%emt 0:00:00]} 4. e3 {[%emt 0:00:00]} Bg7 {[%emt 0:00:00]} 5. cxd5 {[%emt 0:00:00]} Nxd5 {[%emt 0:00:04]} 6. Nxd5 {[%emt 0:00:00]} Qxd5 {[%emt 0:00:06]} 7. Ne2 {[%emt 0:00:02]} O-O $11 {[%emt 0:05:40]} 8. Nc3 {[%emt 0:00:28]} Qd6 {[%emt 0:06:26]} 9. Be2 {[%emt 0:03:20]} c5 {[%emt 0:06:58]} 10. d5 {[%emt 0:00:45]} e6 {[%emt 0:03:55]} 11. e4 {[%emt 0:01:00]} exd5 {[%emt 0:00:45]} 12. exd5 {[%emt 0:00:06]} Nd7 {[%emt 0:06:27]} 13. O-O {[%emt 0:01:07]} Nf6 {[%emt 0:02:37]} 14. Bf3 {[%emt 0:04:22]} Bf5 {[%emt 0:01:25]} 15. g3 {[%emt 0:02:39]} Rfe8 {[%emt 0:07:08]} 16. Bf4 {[%emt 0:02:39]} Qd7 {[%emt 0:08:46]} 17. Qb3 {[%emt 0:05:22]} Ne4 18. Rfe1 {[%emt 0:04:30]} Nxc3 {[%emt 0:17:32]} 19. bxc3 {[%emt 0:01:56]} c4 {[%emt 0:00:19]} 20. Rxe8+ {[%emt 0:03:14]} Rxe8 {[%emt 0:00:09]} 21. Qxc4 {[%emt 0:00:31]} Rc8 {[%emt 0:01:07]} 22. Qe2 {[%emt 0:01:29]} Bxc3 {[%emt 0:06:18]} 23. Rc1 {[%emt 0:04:00]} h5 {[%emt 0:00:32]} 24. h4 {[%emt 0:02:35]} b5 {[%emt 0:01:35]} 25. d6 {[%emt 0:12:39]} a5 {[%emt 0:01:43]} 26. Bd5 {[%emt 0:06:27]} Re8 {[%emt 0:04:16]} 27. Qf3 {[%emt 0:02:08]} Re1+ 28. Rxe1 {[%emt 0:00:54]} Bxe1 {[%emt 0:07:24]} 29. Bc6 {[%emt 0:00:32]} Qd8 {[%emt 0:01:20]} 30. Bxb5 {[%emt 0:00:49]} Bb4 {[%emt 0:01:02]} 31. Qc6 {[%emt 0:02:20]} Qf6 {[%emt 0:05:39]} 32. Qe8+ {[%emt 0:01:14]} Kh7 {[%emt 0:00:07]} 33. Be5 {[%emt 0:00:12]} 1-0

[Event "CAT-chT 2020"]
[Site "Catalonia"]
[Date "2020.02.15"]
[Round "5.10"]
[White "Garcia Marin, Guillem"]
[Black "Alvarez Albiol, Victor"]
[Result "0-1"]
[ECO "A43"]
[WhiteElo "2037"]
[BlackElo "2163"]
[Annotator "ChessBase"]
[PlyCount "76"]
[EventDate "2020.01.18"]
[EventType "team-tourn"]
[EventCountry "ESP"]
[SourceTitle "playchess.com"]
[Source "ChessBase"]
[SourceQuality "1"]
[TimeControl "5400+30"]

1. d4 {[%emt 0:00:00]} Nf6 {[%emt 0:00:00]} 2. Nf3 {[%emt 0:00:00]} c5 {[%emt 0:00:00]} 3. d5 {[%emt 0:00:09]} g6 {[%emt 0:00:03]} 4. Nc3 {[%emt 0:01:17]} Bg7 {[%emt 0:00:25]} 5. e4 {[%emt 0:00:40]} d6 {[%emt 0:00:11]} 6. Bc4 {[%emt 0:01:04]} O-O {[%emt 0:00:28]} 7. O-O {[%emt 0:00:10]} Nbd7 {[%emt 0:03:45]} 8. a4 {[%emt 0:04:35]} Nb6 {[%emt 0:03:20]} 9. Bb3 {[%emt 0:05:34]} Bg4 {[%emt 0:01:05]} 10. a5 {[%emt 0:05:22]} Nbd7 {[%emt 0:00:56]} 11. h3 {[%emt 0:02:08]} Bxf3 {[%emt 0:00:10]} 12. Qxf3 {[%emt 0:00:06]} b6 {[%emt 0:05:15]} 13. axb6 {[%emt 0:08:53]} axb6 {[%emt 0:03:29]} 14. Bg5 {[%emt 0:05:38]} h6 {[%emt 0:06:03]} 15. Bh4 {[%emt 0:04:53]} Ne5 {[%emt 0:06:09]} 16. Qe2 {[%emt 0:00:54]} g5 {[%emt 0:00:42]} 17. Bg3 {[%emt 0:01:08]} Ng6 {[%emt 0:00:18]} 18. Ba4 {[%emt 0:07:39]} b5 {[%emt 0:06:12]} 19. Nxb5 {[%emt 0:10:14]} Nd7 {[%emt 0:03:57]} 20. c4 {[%emt 0:01:45]} Nde5 {[%emt 0:11:32]} 21. Bb3 {[%emt 0:09:40]} Nf4 {[%emt 0:04:39]} 22. Bxf4 {[%emt 0:03:39]} gxf4 {[%emt 0:00:02]} 23. Ra3 {[%emt 0:00:34]} f3 {[%emt 0:01:30]} 24. gxf3 {[%emt 0:00:45]} Ng6 {[%emt 0:03:41]} 25. Rxa8 {[%emt 0:02:12]} Qxa8 {[%emt 0:00:08]} 26. Qd2 {[%emt 0:00:14]} Qc8 {[%emt 0:00:58]} 27. f4 {[%emt 0:01:39]} Qxh3 {[%emt 0:01:23]} 28. Qe3 {[%emt 0:00:18]} Nxf4 {[%emt 0:08:24]} 29. Qxh3 {[%emt 0:01:23]} Nxh3+ {[%emt 0:00:02]} 30. Kh2 {[%emt 0:00:09]} Nf4 {[%emt 0:00:31]} 31. Rg1 {[%emt 0:00:26]} Kh8 {[%emt 0:01:12]} 32. Rg4 {[%emt 0:01:16]} Be5 {[%emt 0:02:24]} 33. Kg1 {[%emt 0:01:40]} Ra8 {[%emt 0:01:26]} 34. Na3 {[%emt 0:04:07]} Ng6 {[%emt 0:06:35]} 35. Nb5 {[%emt 0:07:05]} Ra1+ {[%emt 0:00:27]} 36. Kg2 {[%emt 0:00:10]} h5 {[%emt 0:02:36]} 37. Rg5 {[%emt 0:00:46]} Nh4+ {[%emt 0:00:13]} 38. Kh3 {[%emt 0:00:52]} Rh1# 0-1

[Event "CAT-chT 2020"]
[Site "Catalonia"]
[Date "2020.02.15"]
[Round "5.10"]
[White "Anguera Maestro, Jaime"]
[Black "Ramirez Carrizo, Victor Jose"]
[Result "1-0"]
[ECO "D02"]
[WhiteElo "2022"]
[BlackElo "2190"]
[Annotator "ChessBase"]
[PlyCount "85"]
[EventDate "2020.01.18"]
[EventType "team-tourn"]
[EventCountry "ESP"]
[SourceTitle "playchess.com"]
[Source "ChessBase"]
[SourceQuality "1"]
[TimeControl "5400+30"]

1. d4 d5 2. Nf3 Nf6 3. Bf4 e6 4. e3 Bd6 5. Bg3 O-O 6. Bd3 b6 7. Nbd2 Bb7 8. Ne5 c5 9. c3 Nc6 10. O-O Ne7 11. Ng4 Ne4 12. Bxd6 Qxd6 13. f3 Nxd2 14. Qxd2 Rad8 15. f4 f6 16. Rf3 Nf5 17. Rh3 Qe7 18. Nf2 g6 19. Nh1 Nd6 20. Qf2 Ne4 21. Qh4 Rd7 22. Rf1 c4 23. Bc2 b5 24. g4 b4 25. Bxe4 dxe4 26. Qe1 a5 27. Nf2 Bd5 28. Nd1 Rb7 29. Rf2 Rfb8 30. Rg3 Bc6 31. Rgg2 Ba4 32. Rd2 Qd6 33. h3 Qd5 34. Kh2 Rf8 35. g5 fxg5 36. Rxg5 Rf5 37. Rgg2 Kh8 38. Nf2 Rg7 39. Ng4 g5 40. Ne5 Qb7 41. fxg5 Rfxg5 42. Qg1 Qe7 43. Rxg5 1-0

[Event "CAT-chT 2020"]
[Site "Catalonia"]
[Date "2020.02.22"]
[Round "6.2"]
[White "Boix Moreno, Daniel"]
[Black "Aguero Jimenez, Luis Lazaro"]
[Result "0-1"]
[ECO "B40"]
[WhiteElo "2255"]
[BlackElo "2495"]
[Annotator "ChessBase"]
[PlyCount "34"]
[EventDate "2020.01.18"]
[EventType "team-tourn"]
[EventCountry "ESP"]
[SourceTitle "playchess.com"]
[Source "ChessBase"]
[SourceQuality "1"]
[TimeControl "5400+30"]

1. e4 {[%emt 0:00:00]} c5 2. Nf3 {[%emt 0:00:00]} e6 {[%emt 0:00:00]} 3. Nc3 {[%emt 0:00:05]} Nc6 {[%emt 0:00:00]} 4. Bb5 {[%emt 0:00:51]} Nge7 {[%emt 0:00:00]} 5. O-O {[%emt 0:00:18]} Ng6 6. Re1 {[%emt 0:04:33]} Be7 {[%emt 0:00:28]} 7. b3 {[%emt 0:08:10]} O-O {[%emt 0:00:22]} 8. Bb2 {[%emt 0:06:50]} Qc7 {[%emt 0:00:53]} 9. Bxc6 bxc6 10. Na4 {[%emt 0:20:33]} e5 {[%emt 0:04:16]} 11. c3 {[%emt 0:00:39]} d5 12. d3 {[%emt 0:19:15]} f5 {[%emt 0:06:00]} 13. Qc2 {[%emt 0:08:54]} fxe4 {[%emt 0:07:39]} 14. dxe4 {[%emt 0:00:10]} Rxf3 {[%emt 0:01:10]} 15. gxf3 {[%emt 0:00:08]} Qd7 16. Qe2 Nf4 {[%emt 0:05:57]} 17. Qf1 {[%emt 0:16:26]} Qd6 {[%emt 0:00:07]} 0-1

[Event "CAT-chT 2020"]
[Site "Catalonia"]
[Date "2020.02.22"]
[Round "6.4"]
[White "Hernandez Cigaran, Cristian"]
[Black "Pang, Khai Jie Ryan"]
[Result "1/2-1/2"]
[ECO "D37"]
[WhiteElo "2352"]
[BlackElo "1841"]
[Annotator "NA"]
[PlyCount "36"]
[EventDate "2020.01.18"]
[EventType "team-tourn"]
[EventCountry "ESP"]
[SourceTitle "playchess.com"]
[Source "ChessBase"]
[SourceQuality "1"]
[TimeControl "5400+30"]

1. d4 Nf6 2. Nf3 d5 3. c4 e6 4. Nc3 Be7 5. Bf4 O-O 6. e3 Nbd7 7. Qc2 c5 8. Rd1 b6 9. cxd5 Nxd5 10. Nxd5 exd5 11. dxc5 Nxc5 12. Be2 Bb7 13. O-O Rc8 14. Qb1 Bf6 15. Be5 Bxe5 16. Nxe5 Qf6 17. Nf3 Ne4 18. Nd4 Rc5 1/2-1/2

[Event "CAT-chT 2020"]
[Site "Catalonia"]
[Date "2020.02.22"]
[Round "6.4"]
[White "Gallart Zafra, Jaume"]
[Black "Lillo Castany, Victor"]
[Result "0-1"]
[ECO "C44"]
[WhiteElo "2165"]
[BlackElo "2326"]
[Annotator "NA"]
[PlyCount "24"]
[EventDate "2020.01.18"]
[EventType "team-tourn"]
[EventCountry "ESP"]
[SourceTitle "playchess.com"]
[Source "ChessBase"]
[SourceQuality "1"]
[TimeControl "5400+30"]

1. e4 {[%emt 0:00:37]} e5 {[%emt 0:00:00]} 2. Nf3 {[%emt 0:00:05]} Nc6 {[%emt 0:00:00]} 3. d4 exd4 {[%emt 0:00:00]} 4. Nxd4 {[%emt 0:00:55]} Qf6 5. Be3 {[%emt 0:00:50]} Bc5 {[%emt 0:00:32]} 6. c3 {[%emt 0:00:06]} Nge7 {[%emt 0:00:16]} 7. Bc4 O-O {[%emt 0:01:19]} 8. O-O {[%emt 0:00:24]} b6 {[%emt 0:04:48]} 9. Na3 {[%emt 0:18:56]} Bb7 {[%emt 0:19:09]} 10. Nxc6 Bxc6 {[%emt 0:00:05]} 11. Bxc5 {[%emt 0:01:50]} bxc5 {[%emt 0:04:26]} 12. Re1 Rab8 0-1

[Event "CAT-chT 2020"]
[Site "Catalonia"]
[Date "2020.02.22"]
[Round "6.5"]
[White "Fernandez Soriano, Ruben"]
[Black "Alonso Moyano, Jonathan"]
[Result "1/2-1/2"]
[ECO "A80"]
[WhiteElo "2181"]
[BlackElo "2344"]
[Annotator "ChessBase"]
[PlyCount "45"]
[EventDate "2020.01.18"]
[EventType "team-tourn"]
[EventCountry "ESP"]
[SourceTitle "playchess.com"]
[Source "ChessBase"]
[SourceQuality "1"]
[TimeControl "5400+30"]

1. d4 f5 2. Bg5 g6 3. Nd2 Bg7 4. e4 fxe4 5. Nxe4 d5 6. Ng3 Nc6 7. Nf3 Qd6 8. c3 Nh6 9. Qd2 Nf7 10. Bf4 e5 11. dxe5 Ncxe5 12. Be2 Be6 13. O-O O-O-O 14. Rfe1 Rhe8 15. Rad1 Qf8 16. Nxe5 Nxe5 17. Bxe5 Bxe5 18. Qe3 Bxg3 19. Qxg3 Qf6 20. Bf3 c6 21. Rxe6 Rxe6 22. Bg4 Rd7 23. Qh3 1/2-1/2

[Event "CAT-chT 2020"]
[Site "Catalonia"]
[Date "2020.02.22"]
[Round "6.6"]
[White "Aranda Flores, Jordi"]
[Black "Brusi Noguera, Ricardo Ll."]
[Result "1-0"]
[ECO "A05"]
[WhiteElo "2171"]
[BlackElo "2124"]
[Annotator "ChessBase"]
[PlyCount "66"]
[EventDate "2020.01.18"]
[EventType "team-tourn"]
[EventCountry "ESP"]
[SourceTitle "playchess.com"]
[Source "ChessBase"]
[SourceQuality "1"]
[TimeControl "5400+30"]

1. Nf3 {[%emt 0:00:00]} Nf6 {[%emt 0:00:00]} 2. c4 {[%emt 0:00:00]} g6 {[%emt 0:00:03]} 3. b3 {[%emt 0:00:00]} Bg7 {[%emt 0:00:05]} 4. Bb2 {[%emt 0:00:00]} O-O {[%emt 0:00:26]} 5. d4 {[%emt 0:00:02]} d6 {[%emt 0:01:08]} 6. g3 {[%emt 0:00:07]} e5 {[%emt 0:01:04]} 7. dxe5 {[%emt 0:01:15]} Nfd7 {[%emt 0:00:31]} 8. Nc3 {[%emt 0:00:50]} dxe5 {[%emt 0:13:39]} 9. Qd2 Re8 10. h4 {[%emt 0:25:45]} e4 {[%emt 0:15:34]} 11. Ng5 {[%emt 0:10:21]} Nc5 12. Nd5 f6 {[%emt 0:21:24]} 13. Qc3 {[%emt 0:11:13]} h6 {[%emt 0:06:26]} 14. O-O-O Rf8 {[%emt 0:09:39]} 15. Qe3 {[%emt 0:17:39]} Nd3+ {[%emt 0:08:46]} 16. exd3 fxg5 {[%emt 0:02:05]} 17. Bxg7 {[%emt 0:04:28]} Kxg7 {[%emt 0:00:11]} 18. dxe4 {[%emt 0:05:09]} c6 19. Nc3 {[%emt 0:06:30]} Qf6 {[%emt 0:01:56]} 20. hxg5 {[%emt 0:00:53]} hxg5 {[%emt 0:00:27]} 21. e5 {[%emt 0:01:04]} Qf3 {[%emt 0:02:09]} 22. Qxf3 {[%emt 0:02:53]} Rxf3 {[%emt 0:00:54]} 23. Ne4 {[%emt 0:00:09]} Bf5 {[%emt 0:01:58]} 24. Nf6 {[%emt 0:00:22]} Kf7 {[%emt 0:05:43]} 25. Rd6 {[%emt 0:00:28]} Na6 {[%emt 0:04:09]} 26. Rh7+ {[%emt 0:02:45]} Kf8 {[%emt 0:00:12]} 27. Rh8+ {[%emt 0:00:21]} Kf7 {[%emt 0:01:00]} 28. Rxa8 {[%emt 0:00:51]} Rxf2 {[%emt 0:00:44]} 29. Bd3 {[%emt 0:03:32]} Nb4 {[%emt 0:00:55]} 30. Bxf5 {[%emt 0:02:10]} Nxa2+ {[%emt 0:00:34]} 31. Kd1 {[%emt 0:00:36]} Nc3+ {[%emt 0:01:38]} 32. Ke1 {[%emt 0:00:38]} Re2+ {[%emt 0:00:03]} 33. Kf1 {[%emt 0:00:20]} Rxe5 {[%emt 0:01:33]} 1-0

[Event "CAT-chT 2020"]
[Site "Catalonia"]
[Date "2020.02.22"]
[Round "6.7"]
[White "Lerch i Gallemi, Jose Ma."]
[Black "Leiro Giralt, Daniel"]
[Result "1/2-1/2"]
[ECO "C42"]
[WhiteElo "2113"]
[BlackElo "2173"]
[Annotator "ChessBase"]
[PlyCount "29"]
[EventDate "2020.01.18"]
[EventType "team-tourn"]
[EventCountry "ESP"]
[SourceTitle "playchess.com"]
[Source "ChessBase"]
[SourceQuality "1"]
[TimeControl "5400+30"]

1. e4 {[%emt 0:00:00]} e5 {[%emt 0:00:00]} 2. Nf3 {[%emt 0:00:00]} Nf6 {[%emt 0:00:00]} 3. d3 {[%emt 0:00:00]} c6 {[%emt 0:06:34]} 4. Nbd2 {[%emt 0:07:14]} Qc7 {[%emt 0:08:13]} 5. g3 {[%emt 0:02:06]} d5 {[%emt 0:03:00]} 6. Bg2 {[%emt 0:00:19]} Bd6 {[%emt 0:02:40]} 7. O-O {[%emt 0:00:13]} O-O 8. Re1 {[%emt 0:05:05]} Re8 {[%emt 0:07:19]} 9. Nh4 {[%emt 0:03:07]} Be6 {[%emt 0:23:03]} 10. Nf1 {[%emt 0:01:40]} Nbd7 {[%emt 0:09:05]} 11. h3 Bb4 12. Bd2 {[%emt 0:10:38]} Bxd2 {[%emt 0:12:56]} 13. Qxd2 {[%emt 0:00:16]} Rad8 {[%emt 0:01:00]} 14. g4 {[%emt 0:10:20]} dxe4 15. dxe4 1/2-1/2

[Event "CAT-chT 2020"]
[Site "Catalonia"]
[Date "2020.02.22"]
[Round "6.7"]
[White "Sirera Bargallo, Tomas"]
[Black "Perez Manas, Benjamin"]
[Result "0-1"]
[ECO "A05"]
[WhiteElo "2102"]
[BlackElo "2280"]
[Annotator "ChessBase"]
[PlyCount "80"]
[EventDate "2020.01.18"]
[EventType "team-tourn"]
[EventCountry "ESP"]
[SourceTitle "playchess.com"]
[Source "ChessBase"]
[SourceQuality "1"]
[TimeControl "5400+30"]

1. Nf3 Nf6 2. g3 c5 3. Bg2 Nc6 4. O-O g6 5. d3 Bg7 6. e4 O-O 7. Re1 e5 8. Bg5 h6 9. Bxf6 Bxf6 10. Nc3 d6 11. Nd5 Bg7 12. c3 Be6 13. Rb1 Ne7 14. c4 Nxd5 15. exd5 Bd7 16. b4 b6 17. bxc5 bxc5 18. Rb7 Qc8 19. Rb1 Qc7 20. Qb3 Rab8 21. Qa3 a5 22. Rb3 a4 23. Rbb1 Rb7 24. Nd2 Rfb8 25. h3 Qa5 26. Qc1 Rxb1 27. Nxb1 Qb4 28. Nc3 f5 29. Qc2 Qb2 30. Rc1 a3 31. Bf3 e4 32. dxe4 Qxc2 33. Rxc2 Rb2 34. Rc1 Bd4 35. Ne2 fxe4 36. Nxd4 exf3 37. Nxf3 Rxa2 38. g4 Rb2 39. Kg2 a2 40. Ra1 Ba4 0-1

[Event "CAT-chT 2020"]
[Site "Catalonia"]
[Date "2020.02.22"]
[Round "6.8"]
[White "Martinez Ramirez, Erik"]
[Black "Rofes Barcelo, Josep M."]
[Result "1-0"]
[ECO "C11"]
[WhiteElo "2229"]
[BlackElo "2080"]
[Annotator "ChessBase"]
[PlyCount "53"]
[EventDate "2020.01.18"]
[EventType "team-tourn"]
[EventCountry "ESP"]
[SourceTitle "playchess.com"]
[Source "ChessBase"]
[SourceQuality "1"]
[TimeControl "5400+30"]

1. e4 e6 2. Nf3 d5 3. Nc3 Nf6 4. e5 Nfd7 5. d4 h6 6. h4 c5 7. dxc5 Nc6 8. Bf4 Nxc5 9. a3 a5 10. h5 Bd7 11. Rh3 a4 12. Rg3 Qa5 13. Qd2 Ne4 14. Nxe4 dxe4 15. O-O-O Qc7 16. Nd4 Nxd4 17. Qxd4 Bc6 18. Rc3 Be7 19. Bb5 Rd8 20. Bxc6+ bxc6 21. Qxe4 Rxd1+ 22. Kxd1 O-O 23. Qxc6 Qa7 24. Ke1 Qb8 25. b4 Bg5 26. Bxg5 Qxe5+ 27. Be3 1-0

[Event "CAT-chT 2020"]
[Site "Catalonia"]
[Date "2020.02.22"]
[Round "6.8"]
[White "Moll, Arne"]
[Black "Sorroche Martin, Jose Maria"]
[Result "1-0"]
[ECO "C10"]
[WhiteElo "2205"]
[BlackElo "2169"]
[Annotator "ChessBase"]
[PlyCount "67"]
[EventDate "2020.01.18"]
[EventType "team-tourn"]
[EventCountry "ESP"]
[SourceTitle "playchess.com"]
[Source "ChessBase"]
[SourceQuality "1"]
[TimeControl "5400+30"]

1. e4 {[%emt 0:00:00]} e6 {[%emt 0:00:00]} 2. d4 {[%emt 0:00:24]} d5 {[%emt 0:00:00]} 3. Nc3 h6 {[%emt 0:00:28]} 4. Bd3 a6 {[%emt 0:00:30]} 5. Nf3 Bb4 {[%emt 0:00:30]} 6. O-O Nc6 {[%emt 0:00:30]} 7. Qe2 Nge7 {[%emt 0:00:30]} 8. Bd2 O-O {[%emt 0:00:30]} 9. Rad1 b5 {[%emt 0:00:30]} 10. a4 Bxc3 {[%emt 0:00:30]} 11. Bxc3 b4 {[%emt 0:00:30]} 12. Bd2 a5 {[%emt 0:00:30]} 13. Rfe1 dxe4 {[%emt 0:00:30]} 14. Qxe4 f5 {[%emt 0:00:30]} 15. Qh4 Nd5 {[%emt 0:00:30]} 16. Qg3 {[%emt 1:06:22]} Qd6 {[%emt 1:02:34]} 17. Ne5 {[%emt 0:01:35]} Rf6 {[%emt 0:02:36]} 18. c4 bxc3 {[%emt 0:01:30]} 19. bxc3 {[%emt 0:05:07]} Ba6 {[%emt 0:01:48]} 20. Bxa6 {[%emt 0:07:16]} Rxa6 {[%emt 0:00:15]} 21. Qd3 Ra8 {[%emt 0:08:46]} 22. Qb5 {[%emt 0:03:36]} Nd8 23. c4 c6 {[%emt 0:02:24]} 24. Qc5 {[%emt 0:08:48]} Qxc5 {[%emt 0:00:14]} 25. dxc5 {[%emt 0:00:03]} Nb4 {[%emt 0:00:05]} 26. Nd7 {[%emt 0:00:52]} Nb7 {[%emt 0:04:37]} 27. Nxf6+ {[%emt 0:00:25]} gxf6 {[%emt 0:00:02]} 28. Bxb4 {[%emt 0:02:52]} axb4 29. Rxe6 {[%emt 0:01:35]} Nxc5 {[%emt 0:01:02]} 30. Rxc6 Ne4 31. Rb6 {[%emt 0:01:51]} Rxa4 {[%emt 0:00:33]} 32. f3 {[%emt 0:01:58]} Nc5 {[%emt 0:01:09]} 33. Rd5 {[%emt 0:01:25]} Na6 {[%emt 0:03:51]} 34. Rb7 {[%emt 0:00:17]} 1-0

[Event "CAT-chT 2020"]
[Site "Catalonia"]
[Date "2020.02.22"]
[Round "6.9"]
[White "Sierra Montoya, Miquel"]
[Black "Comellas Blanchart, Jordi"]
[Result "1-0"]
[ECO "B90"]
[WhiteElo "2131"]
[BlackElo "2149"]
[Annotator "ChessBase"]
[PlyCount "93"]
[EventDate "2020.01.18"]
[EventType "team-tourn"]
[EventCountry "ESP"]
[SourceTitle "playchess.com"]
[Source "ChessBase"]
[SourceQuality "1"]
[TimeControl "5400+30"]

1. e4 {[%emt 0:00:00]} c5 {[%emt 0:00:00]} 2. Nf3 {[%emt 0:00:00]} d6 {[%emt 0:00:00]} 3. d4 {[%emt 0:00:00]} cxd4 {[%emt 0:00:00]} 4. Nxd4 {[%emt 0:00:00]} Nf6 {[%emt 0:00:00]} 5. Nc3 {[%emt 0:00:00]} a6 {[%emt 0:00:06]} 6. a3 {[%emt 0:01:32]} e5 {[%emt 0:02:44]} 7. Nf5 {[%emt 0:00:05]} d5 {[%emt 0:02:50]} 8. Bg5 {[%emt 0:00:31]} d4 {[%emt 0:13:59]} 9. Bxf6 {[%emt 0:00:21]} gxf6 {[%emt 0:12:59]} 10. Nb1 {[%emt 0:00:00]} Bxf5 {[%emt 0:14:15]} 11. exf5 Qa5+ {[%emt 0:05:38]} 12. Nd2 Bh6 {[%emt 0:00:30]} 13. b4 Bxd2+ {[%emt 0:00:30]} 14. Qxd2 Qd5 {[%emt 0:00:30]} 15. Bd3 Qxg2 {[%emt 0:00:30]} 16. O-O-O Qg5 {[%emt 0:00:30]} 17. f4 Qxf4 {[%emt 0:00:30]} 18. Qxf4 exf4 {[%emt 0:00:30]} 19. Rhe1+ Kf8 {[%emt 0:00:30]} 20. Be4 Nc6 {[%emt 0:00:30]} 21. Bxc6 bxc6 {[%emt 0:00:30]} 22. Rxd4 Re8 {[%emt 0:00:30]} 23. Rf1 Rg8 {[%emt 0:00:30]} 24. Rfxf4 Rg1+ {[%emt 0:00:30]} 25. Kb2 Ree1 {[%emt 0:00:30]} 26. Rd8+ Re8 {[%emt 0:00:30]} 27. Rd6 Re5 {[%emt 0:00:30]} 28. Rxc6 a5 {[%emt 0:00:30]} 29. Rxf6 Rg2 {[%emt 0:00:30]} 30. h4 Rge2 {[%emt 0:00:30]} 31. Rb6 a4 {[%emt 0:00:30]} 32. f6 R5e3 {[%emt 0:00:30]} 33. Rb8+ Re8 {[%emt 0:00:30]} 34. Rxe8+ Kxe8 {[%emt 0:00:30]} 35. b5 Re5 {[%emt 0:00:30]} 36. Rb4 Kd7 {[%emt 0:00:30]} 37. c4 Re2+ {[%emt 0:00:30]} 38. Kc1 Rf2 {[%emt 0:00:30]} 39. c5 Rxf6 {[%emt 0:00:30]} 40. Rxa4 Rf5 {[%emt 0:00:30]} 41. Rc4 Rf2 {[%emt 0:00:30]} 42. a4 f5 43. c6+ Kc8 44. b6 f4 45. Re4 Kd8 46. c7+ Kd7 47. Rd4+ 1-0

[Event "CAT-chT 2020"]
[Site "Catalonia"]
[Date "2020.02.22"]
[Round "6.9"]
[White "Guasch Figuerola, Agusti"]
[Black "Ramirez Carrizo, Victor Jose"]
[Result "0-1"]
[ECO "A20"]
[WhiteElo "2004"]
[BlackElo "2190"]
[Annotator "ChessBase"]
[PlyCount "49"]
[EventDate "2020.01.18"]
[EventType "team-tourn"]
[EventCountry "ESP"]
[SourceTitle "playchess.com"]
[Source "ChessBase"]
[SourceQuality "1"]
[TimeControl "5400+30"]

1. c4 e5 2. g3 c6 3. Nf3 e4 4. Nd4 d5 5. cxd5 Qxd5 6. Nc2 Nf6 7. Nc3 Qe6 8. Bg2 Bc5 9. b4 Bb6 10. Bb2 O-O 11. Na4 Nbd7 12. O-O Ne5 13. Ne3 Re8 14. Nxb6 axb6 15. a3 Neg4 16. Bd4 Nd5 17. Nxd5 cxd5 18. Qb3 Ne5 19. d3 f5 20. Rfc1 Bd7 21. dxe4 fxe4 22. Bxe5 Qxe5 23. b5 Rac8 24. e3 Rc5 25. Rxc5 0-1

[Event "CAT-chT 2020"]
[Site "Catalonia"]
[Date "2020.02.22"]
[Round "6.10"]
[White "Dickl, Errol"]
[Black "Romero Calderon, Juan"]
[Result "1/2-1/2"]
[ECO "C00"]
[WhiteElo "2159"]
[BlackElo "2099"]
[Annotator "ChessBase"]
[PlyCount "78"]
[EventDate "2020.01.18"]
[EventType "team-tourn"]
[EventCountry "ESP"]
[SourceTitle "playchess.com"]
[Source "ChessBase"]
[SourceQuality "1"]
[TimeControl "5400+30"]

1. e4 {[%emt 0:00:00]} e6 {[%emt 0:00:00]} 2. d3 {[%emt 0:00:00]} b6 3. f4 {[%emt 0:03:14]} Bb7 {[%emt 0:00:59]} 4. Nf3 {[%emt 0:00:08]} Nf6 {[%emt 0:01:17]} 5. c3 c5 {[%emt 0:05:56]} 6. Nbd2 {[%emt 0:03:41]} Be7 {[%emt 0:21:32]} 7. g3 d5 8. e5 {[%emt 0:06:46]} Ng4 {[%emt 0:02:20]} 9. Qe2 {[%emt 0:01:17]} h5 {[%emt 0:06:17]} 10. h4 {[%emt 0:03:12]} Nc6 11. Bh3 b5 {[%emt 0:06:44]} 12. O-O {[%emt 0:04:21]} b4 {[%emt 0:02:22]} 13. Nb3 {[%emt 0:14:31]} c4 {[%emt 0:21:47]} 14. Nbd4 {[%emt 0:02:05]} Qb6 15. Rd1 {[%emt 0:01:43]} cxd3 {[%emt 0:06:42]} 16. Qxd3 {[%emt 0:00:12]} Ba6 {[%emt 0:04:01]} 17. Qd2 Na5 18. Qe1 {[%emt 0:02:34]} bxc3 {[%emt 0:03:37]} 19. bxc3 Rc8 20. Bxg4 {[%emt 0:02:53]} hxg4 {[%emt 0:02:01]} 21. Nh2 {[%emt 0:00:18]} Qc5 {[%emt 0:01:05]} 22. Bd2 {[%emt 0:02:30]} Nc4 {[%emt 0:05:07]} 23. Rdc1 Rb8 24. Rab1 {[%emt 0:03:45]} O-O {[%emt 0:00:49]} 25. Nxg4 {[%emt 0:00:17]} Rxb1 {[%emt 0:00:21]} 26. Rxb1 Qa3 27. Be3 {[%emt 0:06:36]} Rc8 {[%emt 0:02:23]} 28. Bf2 {[%emt 0:03:21]} Nb6 {[%emt 0:02:20]} 29. f5 exf5 {[%emt 0:02:35]} 30. Nxf5 {[%emt 0:00:58]} Bd3 {[%emt 0:00:50]} 31. Nxe7+ {[%emt 0:00:28]} Qxe7 32. Rb4 {[%emt 0:01:58]} Nc4 {[%emt 0:00:56]} 33. Bd4 {[%emt 0:00:47]} a5 34. Rb3 Bc2 {[%emt 0:01:38]} 35. Rb5 {[%emt 0:01:19]} Qd7 {[%emt 0:01:08]} 36. e6 {[%emt 0:00:09]} Qxb5 {[%emt 0:00:36]} 37. exf7+ Kf8 {[%emt 0:01:32]} 38. Bxg7+ {[%emt 0:00:55]} Kxg7 {[%emt 0:00:16]} 39. Qe4 Qc5+ {Qe2 Qb5 Qe1 Kf8} 1/2-1/2